[Event "Titled Tuesday Blitz November 15 Early 2022"]
[White "Desideri, Ricardo Maruchi"]
[Black "Kuznetsov, Mikhail"]
[WhiteFideId "2110440"]
[BlackFideId "4117190"]
[WhiteElo "1945"]
[BlackElo "1981"]
[Result "0-1"]
[Round "04"]
[TimeControl "180+1"]
[Date "2022.11.16"]
[WhiteClock "0:00:03"]
[BlackClock "0:00:03"]

1. e4 {[%clk 0:02:59]}  c6 {[%clk 0:02:58]} 2. d4 {[%clk 0:02:55]}  d5 {[%clk 0:02:59]} 3. e5 {[%clk 0:02:50]}  Bf5 {[%clk 0:02:59]} 4. h4 {[%clk 0:02:50]}  h6 {[%clk 0:02:51]} 5. g4 {[%clk 0:02:49]}  Be4 {[%clk 0:02:47]} 6. f3 {[%clk 0:02:48]}  Bh7 {[%clk 0:02:45]} 7. e6 {[%clk 0:02:49]}  Qd6 {[%clk 0:02:46]} 8. exf7+ {[%clk 0:02:47]}  Kxf7 {[%clk 0:02:46]} 9. Ne2 {[%clk 0:02:47]}  Nd7 {[%clk 0:02:15]} 10. Bf4 {[%clk 0:02:45]}  e5 {[%clk 0:01:55]} 11. Bg3 {[%clk 0:02:37]}  Qb4+ {[%clk 0:01:49]} 12. Nbc3 {[%clk 0:02:35]}  exd4 {[%clk 0:01:44]} 13. Nxd4 {[%clk 0:02:29]}  Qxb2 {[%clk 0:01:39]} 14. Nce2 {[%clk 0:02:12]}  Nc5 {[%clk 0:01:02]} 15. Rb1 {[%clk 0:02:09]}  Qa3 {[%clk 0:00:59]} 16. Bg2 {[%clk 0:01:38]}  Nf6 {[%clk 0:00:54]} 17. O-O {[%clk 0:01:38]}  Be7 {[%clk 0:00:53]} 18. Nb3 {[%clk 0:01:26]}  Rhe8 {[%clk 0:00:35]} 19. Kh2 {[%clk 0:01:18]}  Qa6 {[%clk 0:00:29]} 20. Nxc5 {[%clk 0:01:13]}  Bxc5 {[%clk 0:00:29]} 21. Nf4 {[%clk 0:01:11]}  Bd6 {[%clk 0:00:15]} 22. Re1 {[%clk 0:01:07]}  Rxe1 {[%clk 0:00:14]} 23. Qxe1 {[%clk 0:01:06]}  Re8 {[%clk 0:00:14]} 24. Qc3 {[%clk 0:01:00]}  Re7 {[%clk 0:00:14]} 25. g5 {[%clk 0:00:50]}  hxg5 {[%clk 0:00:11]} 26. hxg5 {[%clk 0:00:50]}  Bxf4 {[%clk 0:00:06]} 27. Bxf4 {[%clk 0:00:35]}  Nh5 {[%clk 0:00:07]} 28. Bd6 {[%clk 0:00:35]}  Re6 {[%clk 0:00:06]} 29. Bc5 {[%clk 0:00:25]}  Nf4 {[%clk 0:00:06]} 30. Be3 {[%clk 0:00:18]}  Nxg2 {[%clk 0:00:04]} 31. Kxg2 {[%clk 0:00:16]}  b6 {[%clk 0:00:03]} 32. Bf2 {[%clk 0:00:14]}  Bf5 {[%clk 0:00:01]} 33. Rh1 {[%clk 0:00:14]}  Qc4 {[%clk 0:00:01]} 34. Qxc4 {[%clk 0:00:12]}  dxc4 {[%clk 0:00:02]} 35. Rh4 {[%clk 0:00:12]}  b5 {[%clk 0:00:01]} 36. c3 {[%clk 0:00:11]}  a6 {[%clk 0:00:01]} 37. Bd4 {[%clk 0:00:11]}  g6 {[%clk 0:00:01]} 38. Rh7+ {[%clk 0:00:10]}  Ke8 {[%clk 0:00:02]} 39. Ra7 {[%clk 0:00:09]}  Re2+ {[%clk 0:00:02]} 40. Kg3 {[%clk 0:00:07]}  Rxa2 {[%clk 0:00:03]} 41. Ra8+ {[%clk 0:00:06]}  Kd7 {[%clk 0:00:03]} 42. Ra7+ {[%clk 0:00:05]}  Kd6 {[%clk 0:00:03]} 43. Rg7 {[%clk 0:00:03]}  c5 {[%clk 0:00:03]} 0-1


[Site "https://www.chess.com"]

[Event "Titled Tuesday Blitz November 15 Early 2022"]
[White "Donskov, Anatoly"]
[Black "Slugin, Sergey"]
[WhiteFideId "24143413"]
[BlackFideId "4122569"]
[WhiteElo "2219"]
[BlackElo "2330"]
[Result "1/2-1/2"]
[Round "04"]
[TimeControl "180+1"]
[Date "2022.11.16"]
[WhiteClock "0:00:08"]
[BlackClock "0:00:08"]

1. e4 {[%clk 0:03:00]}  e5 {[%clk 0:02:59]} 2. Nf3 {[%clk 0:03:00]}  Nc6 {[%clk 0:03:00]} 3. Bb5 {[%clk 0:03:01]}  a6 {[%clk 0:03:00]} 4. Ba4 {[%clk 0:03:01]}  d6 {[%clk 0:03:01]} 5. c3 {[%clk 0:03:00]}  g5 {[%clk 0:03:01]} 6. h3 {[%clk 0:02:58]}  Bd7 {[%clk 0:03:00]} 7. d4 {[%clk 0:02:57]}  h6 {[%clk 0:03:01]} 8. Be3 {[%clk 0:02:55]}  Bg7 {[%clk 0:02:59]} 9. Nbd2 {[%clk 0:02:53]}  Nf6 {[%clk 0:02:56]} 10. a3 {[%clk 0:02:29]}  Qe7 {[%clk 0:02:47]} 11. Bc2 {[%clk 0:02:26]}  O-O-O {[%clk 0:02:44]} 12. Qe2 {[%clk 0:02:20]}  d5 {[%clk 0:02:42]} 13. dxe5 {[%clk 0:02:12]}  Nxe4 {[%clk 0:02:19]} 14. Nxe4 {[%clk 0:02:01]}  dxe4 {[%clk 0:02:20]} 15. Bxe4 {[%clk 0:02:01]}  f5 {[%clk 0:02:16]} 16. exf6 {[%clk 0:01:43]}  Bxf6 {[%clk 0:02:16]} 17. Bd3 {[%clk 0:01:23]}  h5 {[%clk 0:02:07]} 18. O-O-O {[%clk 0:01:21]}  Na5 {[%clk 0:02:02]} 19. Kb1 {[%clk 0:01:11]}  Ba4 {[%clk 0:01:50]} 20. Bc2 {[%clk 0:00:59]}  Bb5 {[%clk 0:01:50]} 21. Bd3 {[%clk 0:01:00]}  Rxd3 {[%clk 0:01:39]} 22. Rxd3 {[%clk 0:00:59]}  Qe4 {[%clk 0:01:39]} 23. Rd1 {[%clk 0:00:43]}  Rd8 {[%clk 0:01:39]} 24. Ne1 {[%clk 0:00:35]}  Nb3 {[%clk 0:01:20]} 25. Qf3 {[%clk 0:00:28]}  Bxd3+ {[%clk 0:00:41]} 26. Rxd3 {[%clk 0:00:27]}  Qxf3 {[%clk 0:00:38]} 27. Rxd8+ {[%clk 0:00:26]}  Kxd8 {[%clk 0:00:36]} 28. Nxf3 {[%clk 0:00:27]}  g4 {[%clk 0:00:35]} 29. hxg4 {[%clk 0:00:27]}  hxg4 {[%clk 0:00:36]} 30. Nh2 {[%clk 0:00:22]}  g3 {[%clk 0:00:36]} 31. fxg3 {[%clk 0:00:23]}  c5 {[%clk 0:00:33]} 32. c4 {[%clk 0:00:19]}  b5 {[%clk 0:00:33]} 33. cxb5 {[%clk 0:00:19]}  axb5 {[%clk 0:00:34]} 34. g4 {[%clk 0:00:18]}  Ke7 {[%clk 0:00:31]} 35. g5 {[%clk 0:00:18]}  Bg7 {[%clk 0:00:31]} 36. Ng4 {[%clk 0:00:17]}  Ke6 {[%clk 0:00:32]} 37. Kc2 {[%clk 0:00:16]}  c4 {[%clk 0:00:32]} 38. Nf2 {[%clk 0:00:16]}  Kd5 {[%clk 0:00:24]} 39. Nd1 {[%clk 0:00:13]}  Ke4 {[%clk 0:00:20]} 40. Bc1 {[%clk 0:00:12]}  Nd4+ {[%clk 0:00:20]} 41. Kb1 {[%clk 0:00:12]}  Kd3 {[%clk 0:00:18]} 42. Nc3 {[%clk 0:00:11]}  Be5 {[%clk 0:00:16]} 43. Nxb5 {[%clk 0:00:11]}  Nxb5 {[%clk 0:00:15]} 44. a4 {[%clk 0:00:10]}  Nc7 {[%clk 0:00:14]} 45. a5 {[%clk 0:00:11]}  Na6 {[%clk 0:00:14]} 46. g6 {[%clk 0:00:11]}  Bg7 {[%clk 0:00:13]} 47. Bg5 {[%clk 0:00:11]}  Ke4 {[%clk 0:00:13]} 48. Kc2 {[%clk 0:00:10]}  Kf5 {[%clk 0:00:13]} 49. Bd2 {[%clk 0:00:10]}  Nc5 {[%clk 0:00:07]} 50. Bc3 {[%clk 0:00:09]}  Kxg6 {[%clk 0:00:02]} 51. Bxg7 {[%clk 0:00:08]}  Kxg7 {[%clk 0:00:03]} 52. Kc3 {[%clk 0:00:09]}  Kf6 {[%clk 0:00:03]} 53. Kxc4 {[%clk 0:00:08]}  Nd7 {[%clk 0:00:02]} 54. b4 {[%clk 0:00:08]}  Ke6 {[%clk 0:00:03]} 55. g4 {[%clk 0:00:06]}  Kd6 {[%clk 0:00:04]} 56. g5 {[%clk 0:00:06]}  Kc6 {[%clk 0:00:03]} 57. g6 {[%clk 0:00:07]}  Ne5+ {[%clk 0:00:03]} 58. Kd4 {[%clk 0:00:07]}  Nxg6 {[%clk 0:00:04]} 59. Kc4 {[%clk 0:00:07]}  Ne5+ {[%clk 0:00:05]} 60. Kc3 {[%clk 0:00:07]}  Kb5 {[%clk 0:00:05]} 61. Kd4 {[%clk 0:00:08]}  Nc6+ {[%clk 0:00:06]} 62. Kd5 {[%clk 0:00:08]}  Nxb4+ {[%clk 0:00:06]} 63. Kd6 {[%clk 0:00:08]}  Na6 {[%clk 0:00:07]} 64. Kd7 {[%clk 0:00:08]}  Kxa5 {[%clk 0:00:08]} 1/2-1/2


[Site "https://www.chess.com"]

[Event "Titled Tuesday Blitz November 15 Early 2022"]
[White "Dudzinski, Pawel"]
[Black "Melikyan, Gnel"]
[WhiteFideId "1117890"]
[BlackFideId "54109990"]
[WhiteElo "2086"]
[BlackElo "2138"]
[Result "0-1"]
[Round "04"]
[TimeControl "180+1"]
[Date "2022.11.16"]
[WhiteClock "0:00:02"]
[BlackClock "0:00:11"]

1. e4 {[%clk 0:02:49]}  g6 {[%clk 0:02:56]} 2. Nc3 {[%clk 0:02:49]}  Bg7 {[%clk 0:02:57]} 3. g3 {[%clk 0:02:50]}  Nf6 {[%clk 0:02:56]} 4. Bg2 {[%clk 0:02:50]}  O-O {[%clk 0:02:57]} 5. Nge2 {[%clk 0:02:41]}  c5 {[%clk 0:02:54]} 6. d4 {[%clk 0:02:37]}  cxd4 {[%clk 0:02:54]} 7. Nxd4 {[%clk 0:02:38]}  Nc6 {[%clk 0:02:53]} 8. Be3 {[%clk 0:02:33]}  d6 {[%clk 0:02:46]} 9. h3 {[%clk 0:02:32]}  Bd7 {[%clk 0:02:41]} 10. O-O {[%clk 0:02:30]}  Rc8 {[%clk 0:02:37]} 11. Nce2 {[%clk 0:02:09]}  Re8 {[%clk 0:02:19]} 12. b3 {[%clk 0:02:05]}  a6 {[%clk 0:02:13]} 13. c4 {[%clk 0:01:56]}  Qc7 {[%clk 0:02:09]} 14. Rc1 {[%clk 0:01:52]}  Qb8 {[%clk 0:02:08]} 15. g4 {[%clk 0:01:40]}  h5 {[%clk 0:01:58]} 16. g5 {[%clk 0:01:13]}  Nh7 {[%clk 0:01:52]} 17. h4 {[%clk 0:01:14]}  b5 {[%clk 0:01:45]} 18. Nxc6 {[%clk 0:01:07]}  Bxc6 {[%clk 0:01:44]} 19. Bd4 {[%clk 0:01:07]}  bxc4 {[%clk 0:01:40]} 20. Bxg7 {[%clk 0:01:06]}  Kxg7 {[%clk 0:01:40]} 21. Rxc4 {[%clk 0:01:04]}  Bb5 {[%clk 0:01:40]} 22. Rxc8 {[%clk 0:00:52]}  Rxc8 {[%clk 0:01:39]} 23. Re1 {[%clk 0:00:53]}  Nf8 {[%clk 0:01:32]} 24. Nd4 {[%clk 0:00:47]}  Qb6 {[%clk 0:01:15]} 25. Nxb5 {[%clk 0:00:43]}  axb5 {[%clk 0:01:14]} 26. Bh3 {[%clk 0:00:42]}  Rc3 {[%clk 0:01:11]} 27. Kg2 {[%clk 0:00:24]}  Qc5 {[%clk 0:00:53]} 28. Re2 {[%clk 0:00:23]}  Qe5 {[%clk 0:00:49]} 29. Qd5 {[%clk 0:00:16]}  e6 {[%clk 0:00:31]} 30. Qxe5+ {[%clk 0:00:16]}  dxe5 {[%clk 0:00:32]} 31. Rd2 {[%clk 0:00:15]}  Rc7 {[%clk 0:00:27]} 32. Kg3 {[%clk 0:00:16]}  Nd7 {[%clk 0:00:27]} 33. Bf1 {[%clk 0:00:11]}  b4 {[%clk 0:00:27]} 34. Bc4 {[%clk 0:00:10]}  Nb6 {[%clk 0:00:24]} 35. Rc2 {[%clk 0:00:10]}  Kf8 {[%clk 0:00:23]} 36. Bd3 {[%clk 0:00:10]}  Rd7 {[%clk 0:00:21]} 37. Be2 {[%clk 0:00:08]}  Rd4 {[%clk 0:00:19]} 38. Kf3 {[%clk 0:00:09]}  Ke7 {[%clk 0:00:19]} 39. Ke3 {[%clk 0:00:09]}  Kd6 {[%clk 0:00:17]} 40. f3 {[%clk 0:00:10]}  Nd7 {[%clk 0:00:17]} 41. Rd2 {[%clk 0:00:10]}  Kc5 {[%clk 0:00:17]} 42. Rc2+ {[%clk 0:00:10]}  Kb6 {[%clk 0:00:17]} 43. Rc4 {[%clk 0:00:10]}  Rxc4 {[%clk 0:00:14]} 44. Bxc4 {[%clk 0:00:09]}  Kc5 {[%clk 0:00:15]} 45. Kd3 {[%clk 0:00:09]}  Nb6 {[%clk 0:00:14]} 46. Ba6 {[%clk 0:00:07]}  Nd7 {[%clk 0:00:11]} 47. Ke3 {[%clk 0:00:07]}  Nb8 {[%clk 0:00:11]} 48. Bc8 {[%clk 0:00:05]}  Nc6 {[%clk 0:00:12]} 49. Bd7 {[%clk 0:00:04]}  Nd8 {[%clk 0:00:12]} 50. Be8 {[%clk 0:00:04]}  Kd6 {[%clk 0:00:11]} 51. Kd3 {[%clk 0:00:05]}  Kc5 {[%clk 0:00:11]} 52. Bd7 {[%clk 0:00:03]}  Kd6 {[%clk 0:00:11]} 53. Be8 {[%clk 0:00:04]}  Ke7 {[%clk 0:00:12]} 54. Bb5 {[%clk 0:00:04]}  f6 {[%clk 0:00:11]} 55. gxf6+ {[%clk 0:00:04]}  Kxf6 {[%clk 0:00:12]} 56. Be8 {[%clk 0:00:03]}  g5 {[%clk 0:00:12]} 57. Bxh5 {[%clk 0:00:02]}  gxh4 {[%clk 0:00:13]} 58. Bg4 {[%clk 0:00:02]}  Kg5 {[%clk 0:00:10]} 59. Kc4 {[%clk 0:00:03]}  Kf4 {[%clk 0:00:09]} 60. Kxb4 {[%clk 0:00:04]}  Nc6+ {[%clk 0:00:09]} 61. Kc5 {[%clk 0:00:03]}  Nd4 {[%clk 0:00:10]} 62. Kc4 {[%clk 0:00:02]}  Nxf3 {[%clk 0:00:10]} 63. Bxe6 {[%clk 0:00:01]}  Ng5 {[%clk 0:00:10]} 64. Bf5 {[%clk 0:00:02]}  Nxe4 {[%clk 0:00:11]} 0-1


[Site "https://www.chess.com"]

[Event "Titled Tuesday Blitz November 15 Early 2022"]
[White "Fernandez Garcia, Gumersindo"]
[Black "Piesik, Piotr"]
[WhiteFideId "24516740"]
[BlackFideId "1136194"]
[WhiteElo "2140"]
[BlackElo "2316"]
[Result "0-1"]
[Round "04"]
[TimeControl "180+1"]
[Date "2022.11.16"]
[WhiteClock "0:00:45"]
[BlackClock "0:01:14"]

1. b3 {[%clk 0:03:00]}  d5 {[%clk 0:02:59]} 2. Bb2 {[%clk 0:03:01]}  c5 {[%clk 0:02:56]} 3. e3 {[%clk 0:03:02]}  a6 {[%clk 0:02:56]} 4. Nf3 {[%clk 0:03:02]}  Nc6 {[%clk 0:02:56]} 5. h3 {[%clk 0:03:02]}  Bf5 {[%clk 0:02:53]} 6. c4 {[%clk 0:03:02]}  d4 {[%clk 0:02:51]} 7. d3 {[%clk 0:02:54]}  e5 {[%clk 0:02:49]} 8. e4 {[%clk 0:02:34]}  Be6 {[%clk 0:02:47]} 9. Nbd2 {[%clk 0:02:34]}  Bd6 {[%clk 0:02:45]} 10. g3 {[%clk 0:02:32]}  g5 {[%clk 0:02:40]} 11. Bg2 {[%clk 0:02:31]}  h5 {[%clk 0:02:38]} 12. a3 {[%clk 0:02:29]}  f6 {[%clk 0:02:37]} 13. Qe2 {[%clk 0:02:22]}  Nge7 {[%clk 0:02:35]} 14. h4 {[%clk 0:02:19]}  Ng6 {[%clk 0:02:30]} 15. Bc1 {[%clk 0:02:03]}  Bg4 {[%clk 0:02:22]} 16. Nf1 {[%clk 0:01:58]}  gxh4 {[%clk 0:02:21]} 17. gxh4 {[%clk 0:01:58]}  b5 {[%clk 0:02:13]} 18. N1h2 {[%clk 0:01:51]}  Qd7 {[%clk 0:02:10]} 19. Qc2 {[%clk 0:01:45]}  Nd8 {[%clk 0:01:58]} 20. Bd2 {[%clk 0:01:43]}  Ne6 {[%clk 0:01:57]} 21. Nxg4 {[%clk 0:01:13]}  hxg4 {[%clk 0:01:57]} 22. h5 {[%clk 0:01:14]}  Ngf4 {[%clk 0:01:50]} 23. Nh4 {[%clk 0:01:11]}  Rxh5 {[%clk 0:01:48]} 24. Kf1 {[%clk 0:01:11]}  Kf7 {[%clk 0:01:44]} 25. Nf5 {[%clk 0:01:08]}  Rxh1+ {[%clk 0:01:39]} 26. Bxh1 {[%clk 0:01:09]}  Rh8 {[%clk 0:01:39]} 27. Bg2 {[%clk 0:01:09]}  Kg6 {[%clk 0:01:31]} 28. Qd1 {[%clk 0:01:03]}  Kg5 {[%clk 0:01:25]} 29. cxb5 {[%clk 0:00:51]}  axb5 {[%clk 0:01:21]} 30. a4 {[%clk 0:00:52]}  Qh7 {[%clk 0:01:19]} 31. Ng3 {[%clk 0:00:48]}  Qh2 {[%clk 0:01:15]} 32. Bh1 {[%clk 0:00:45]}  Qxh1+ {[%clk 0:01:14]} 0-1


[Site "https://www.chess.com"]

[Event "Titled Tuesday Blitz November 15 Early 2022"]
[White "Fiol, Fabrice"]
[Black "Rakhmatullaev, Almas"]
[WhiteFideId "611670"]
[BlackFideId "14205793"]
[WhiteElo "2412"]
[BlackElo "2221"]
[Result "0-1"]
[Round "04"]
[TimeControl "180+1"]
[Date "2022.11.16"]
[WhiteClock "0:00:18"]
[BlackClock "0:00:08"]

1. e4 {[%clk 0:03:00]}  e5 {[%clk 0:03:00]} 2. Nf3 {[%clk 0:02:58]}  Nc6 {[%clk 0:03:00]} 3. Bc4 {[%clk 0:02:56]}  Nf6 {[%clk 0:03:00]} 4. d3 {[%clk 0:02:53]}  Bc5 {[%clk 0:02:59]} 5. c3 {[%clk 0:02:53]}  d6 {[%clk 0:03:00]} 6. Nbd2 {[%clk 0:02:53]}  O-O {[%clk 0:03:00]} 7. h3 {[%clk 0:02:51]}  a6 {[%clk 0:03:01]} 8. Bb3 {[%clk 0:02:50]}  Be6 {[%clk 0:03:01]} 9. Nf1 {[%clk 0:02:48]}  d5 {[%clk 0:03:01]} 10. Qe2 {[%clk 0:02:47]}  Re8 {[%clk 0:02:57]} 11. Ng3 {[%clk 0:02:45]}  h6 {[%clk 0:02:56]} 12. Nh2 {[%clk 0:02:43]}  b5 {[%clk 0:02:53]} 13. Ng4 {[%clk 0:02:38]}  Be7 {[%clk 0:02:08]} 14. Qf3 {[%clk 0:02:32]}  dxe4 {[%clk 0:02:04]} 15. dxe4 {[%clk 0:02:30]}  Nh7 {[%clk 0:01:47]} 16. Nf5 {[%clk 0:01:44]}  Bg5 {[%clk 0:01:45]} 17. h4 {[%clk 0:01:36]}  Bxc1 {[%clk 0:01:44]} 18. Rxc1 {[%clk 0:01:35]}  Bxf5 {[%clk 0:01:30]} 19. Qxf5 {[%clk 0:01:27]}  Rf8 {[%clk 0:01:16]} 20. Bd5 {[%clk 0:01:16]}  Ne7 {[%clk 0:01:10]} 21. Qf3 {[%clk 0:01:08]}  Nxd5 {[%clk 0:01:08]} 22. exd5 {[%clk 0:01:09]}  e4 {[%clk 0:01:07]} 23. Qg3 {[%clk 0:01:08]}  Qxd5 {[%clk 0:01:03]} 24. O-O {[%clk 0:01:08]}  Qe6 {[%clk 0:00:58]} 25. Ne3 {[%clk 0:01:03]}  c5 {[%clk 0:00:52]} 26. f3 {[%clk 0:00:58]}  Rae8 {[%clk 0:00:39]} 27. fxe4 {[%clk 0:00:58]}  Qxe4 {[%clk 0:00:19]} 28. Nf5 {[%clk 0:00:58]}  g6 {[%clk 0:00:20]} 29. Nxh6+ {[%clk 0:00:53]}  Kg7 {[%clk 0:00:21]} 30. Ng4 {[%clk 0:00:54]}  f5 {[%clk 0:00:19]} 31. Nf2 {[%clk 0:00:52]}  Qe3 {[%clk 0:00:16]} 32. Qc7+ {[%clk 0:00:53]}  Re7 {[%clk 0:00:16]} 33. Qb6 {[%clk 0:00:50]}  Rf6 {[%clk 0:00:15]} 34. Qd8 {[%clk 0:00:51]}  Rf8 {[%clk 0:00:13]} 35. Qd6 {[%clk 0:00:49]}  Rf6 {[%clk 0:00:11]} 36. Qd8 {[%clk 0:00:48]}  Rfe6 {[%clk 0:00:11]} 37. Rcd1 {[%clk 0:00:45]}  Nf6 {[%clk 0:00:11]} 38. Rd3 {[%clk 0:00:39]}  Qe2 {[%clk 0:00:10]} 39. Rd2 {[%clk 0:00:33]}  Qxf1+ {[%clk 0:00:10]} 40. Kh2 {[%clk 0:00:30]}  Re1 {[%clk 0:00:10]} 41. h5 {[%clk 0:00:18]}  Qg1+ {[%clk 0:00:09]} 42. Kg3 {[%clk 0:00:19]}  Nxh5+ {[%clk 0:00:08]} 43. Kh4 {[%clk 0:00:18]}  Qh2+ {[%clk 0:00:07]} 44. Nh3 {[%clk 0:00:18]}  Qg3# {[%clk 0:00:08]} 0-1


[Site "https://www.chess.com"]

[Event "Titled Tuesday Blitz November 15 Early 2022"]
[White "Flis, Pawel"]
[Black "Gjestemoen-VonHirsch, Andre"]
[WhiteFideId "1112864"]
[BlackFideId "1539531"]
[WhiteElo "1817"]
[BlackElo "2198"]
[Result "0-1"]
[Round "04"]
[TimeControl "180+1"]
[Date "2022.11.16"]
[WhiteClock "0:00:01"]
[BlackClock "0:00:07"]

1. e4 {[%clk 0:03:00]}  g6 {[%clk 0:02:58]} 2. d4 {[%clk 0:03:00]}  Bg7 {[%clk 0:02:59]} 3. c4 {[%clk 0:02:57]}  c5 {[%clk 0:02:56]} 4. Nf3 {[%clk 0:02:56]}  Nc6 {[%clk 0:02:36]} 5. Be3 {[%clk 0:02:48]}  Qb6 {[%clk 0:02:30]} 6. Nc3 {[%clk 0:01:52]}  cxd4 {[%clk 0:02:28]} 7. Nd5 {[%clk 0:01:50]}  Qa5+ {[%clk 0:02:17]} 8. b4 {[%clk 0:01:31]}  Qd8 {[%clk 0:01:42]} 9. Nxd4 {[%clk 0:01:27]}  Nf6 {[%clk 0:01:37]} 10. Nxc6 {[%clk 0:01:18]}  bxc6 {[%clk 0:01:35]} 11. Nxf6+ {[%clk 0:01:18]}  Bxf6 {[%clk 0:01:36]} 12. Bd4 {[%clk 0:01:18]}  Bxd4 {[%clk 0:01:22]} 13. Qxd4 {[%clk 0:01:19]}  O-O {[%clk 0:01:22]} 14. Be2 {[%clk 0:01:15]}  Qc7 {[%clk 0:01:18]} 15. O-O {[%clk 0:01:10]}  c5 {[%clk 0:01:17]} 16. bxc5 {[%clk 0:00:56]}  Ba6 {[%clk 0:01:16]} 17. Rfd1 {[%clk 0:00:52]}  Rfd8 {[%clk 0:01:15]} 18. Qe3 {[%clk 0:00:18]}  Rac8 {[%clk 0:01:14]} 19. h4 {[%clk 0:00:18]}  Qxc5 {[%clk 0:01:10]} 20. Qh6 {[%clk 0:00:19]}  Rc6 {[%clk 0:01:00]} 21. Rd5 {[%clk 0:00:17]}  Qb4 {[%clk 0:00:51]} 22. Rad1 {[%clk 0:00:15]}  d6 {[%clk 0:00:26]} 23. h5 {[%clk 0:00:15]}  Bxc4 {[%clk 0:00:19]} 24. hxg6 {[%clk 0:00:13]}  hxg6 {[%clk 0:00:19]} 25. Rg5 {[%clk 0:00:09]}  Bxe2 {[%clk 0:00:18]} 26. Rxg6+ {[%clk 0:00:08]}  fxg6 {[%clk 0:00:19]} 27. Qxg6+ {[%clk 0:00:07]}  Kf8 {[%clk 0:00:20]} 28. Rd5 {[%clk 0:00:05]}  Rc5 {[%clk 0:00:05]} 29. Rf5+ {[%clk 0:00:05]}  Rxf5 {[%clk 0:00:05]} 30. Qxf5+ {[%clk 0:00:05]}  Ke8 {[%clk 0:00:06]} 31. Qg6+ {[%clk 0:00:05]}  Kd7 {[%clk 0:00:06]} 32. Qf5+ {[%clk 0:00:05]}  Kc7 {[%clk 0:00:07]} 33. Qe6 {[%clk 0:00:03]}  Bb5 {[%clk 0:00:06]} 34. Qxe7+ {[%clk 0:00:02]}  Rd7 {[%clk 0:00:07]} 35. Qe8 {[%clk 0:00:02]}  Qe1+ {[%clk 0:00:07]} 36. Kh2 {[%clk 0:00:01]}  Rh7+ {[%clk 0:00:07]} 0-1


[Site "https://www.chess.com"]

[Event "Titled Tuesday Blitz November 15 Early 2022"]
[White "Forgacs, Attila Jr."]
[Black "Marcolino, Daniel Mattos"]
[WhiteFideId "773654"]
[BlackFideId "2106841"]
[WhiteElo "2168"]
[BlackElo "2128"]
[Result "1-0"]
[Round "04"]
[TimeControl "180+1"]
[Date "2022.11.16"]
[WhiteClock "0:00:40"]
[BlackClock "0:01:12"]

1. e4 {[%clk 0:03:00]}  c6 {[%clk 0:02:59]} 2. d4 {[%clk 0:03:00]}  d5 {[%clk 0:03:00]} 3. Nc3 {[%clk 0:03:00]}  dxe4 {[%clk 0:03:00]} 4. Nxe4 {[%clk 0:03:01]}  Nd7 {[%clk 0:03:00]} 5. Ng5 {[%clk 0:03:01]}  Ngf6 {[%clk 0:03:00]} 6. Bd3 {[%clk 0:02:55]}  e6 {[%clk 0:03:00]} 7. Qe2 {[%clk 0:02:52]}  Bd6 {[%clk 0:02:59]} 8. N1f3 {[%clk 0:02:52]}  h6 {[%clk 0:02:58]} 9. Ne4 {[%clk 0:02:43]}  Nxe4 {[%clk 0:02:56]} 10. Qxe4 {[%clk 0:02:44]}  Qc7 {[%clk 0:02:56]} 11. O-O {[%clk 0:02:42]}  b6 {[%clk 0:02:50]} 12. Qg4 {[%clk 0:02:38]}  g5 {[%clk 0:02:40]} 13. Re1 {[%clk 0:02:33]}  Bb7 {[%clk 0:02:38]} 14. c4 {[%clk 0:02:25]}  O-O-O {[%clk 0:02:38]} 15. a4 {[%clk 0:02:10]}  f5 {[%clk 0:02:38]} 16. Qh5 {[%clk 0:02:04]}  Nf6 {[%clk 0:02:18]} 17. Qg6 {[%clk 0:02:02]}  Rdf8 {[%clk 0:02:18]} 18. Rxe6 {[%clk 0:01:56]}  g4 {[%clk 0:01:50]} 19. Bxf5 {[%clk 0:01:46]}  Kb8 {[%clk 0:01:46]} 20. Rxf6 {[%clk 0:01:35]}  gxf3 {[%clk 0:01:43]} 21. g3 {[%clk 0:01:07]}  Rfg8 {[%clk 0:01:31]} 22. Qf7 {[%clk 0:01:01]}  Bxg3 {[%clk 0:01:22]} 23. hxg3 {[%clk 0:00:41]}  Rxg3+ {[%clk 0:01:19]} 24. Kf1 {[%clk 0:00:41]}  Qxf7 {[%clk 0:01:12]} 25. Rxf7 {[%clk 0:00:40]}  Rh3 {[%clk 0:01:12]} 26. Bxh3 {[%clk 0:00:40]} 1-0


[Site "https://www.chess.com"]

[Event "Titled Tuesday Blitz November 15 Early 2022"]
[White "Gedgafov, Chamal"]
[Black "Goh, Zi Han"]
[WhiteFideId "34130621"]
[BlackFideId "5819156"]
[WhiteElo "2067"]
[BlackElo "2026"]
[Result "1-0"]
[Round "04"]
[TimeControl "180+1"]
[Date "2022.11.16"]
[WhiteClock "0:01:39"]
[BlackClock "0:00:09"]

1. d4 {[%clk 0:03:00]}  Nf6 {[%clk 0:02:58]} 2. Nf3 {[%clk 0:03:01]}  g6 {[%clk 0:02:58]} 3. Bf4 {[%clk 0:03:01]}  Bg7 {[%clk 0:02:58]} 4. e3 {[%clk 0:03:01]}  d6 {[%clk 0:02:59]} 5. h3 {[%clk 0:03:02]}  O-O {[%clk 0:02:57]} 6. Be2 {[%clk 0:03:02]}  Nbd7 {[%clk 0:02:57]} 7. c3 {[%clk 0:03:02]}  c6 {[%clk 0:02:55]} 8. O-O {[%clk 0:03:02]}  a5 {[%clk 0:02:52]} 9. a4 {[%clk 0:03:01]}  Qb6 {[%clk 0:02:45]} 10. Qc2 {[%clk 0:03:00]}  Re8 {[%clk 0:02:43]} 11. Nbd2 {[%clk 0:02:59]}  e5 {[%clk 0:02:36]} 12. Nc4 {[%clk 0:02:57]}  Qc7 {[%clk 0:02:35]} 13. dxe5 {[%clk 0:02:58]}  dxe5 {[%clk 0:02:34]} 14. Bh2 {[%clk 0:02:57]}  Nd5 {[%clk 0:02:27]} 15. Rfd1 {[%clk 0:02:53]}  N7b6 {[%clk 0:02:21]} 16. Nfd2 {[%clk 0:02:51]}  Nxc4 {[%clk 0:02:09]} 17. Nxc4 {[%clk 0:02:50]}  Be6 {[%clk 0:02:02]} 18. Rd2 {[%clk 0:02:32]}  Rab8 {[%clk 0:01:46]} 19. Na3 {[%clk 0:02:28]}  f5 {[%clk 0:01:34]} 20. Rad1 {[%clk 0:02:27]}  Qf7 {[%clk 0:01:31]} 21. Bc4 {[%clk 0:02:25]}  Rbd8 {[%clk 0:01:27]} 22. Qb3 {[%clk 0:02:24]}  e4 {[%clk 0:01:20]} 23. Bxd5 {[%clk 0:02:23]}  Rxd5 {[%clk 0:01:18]} 24. Rxd5 {[%clk 0:02:22]}  Bxd5 {[%clk 0:01:19]} 25. Qb6 {[%clk 0:02:22]}  g5 {[%clk 0:01:14]} 26. Nc2 {[%clk 0:02:01]}  f4 {[%clk 0:01:08]} 27. Nd4 {[%clk 0:02:00]}  f3 {[%clk 0:01:09]} 28. g4 {[%clk 0:01:58]}  h5 {[%clk 0:01:05]} 29. Nf5 {[%clk 0:01:57]}  hxg4 {[%clk 0:01:04]} 30. hxg4 {[%clk 0:01:58]}  Qd7 {[%clk 0:00:48]} 31. c4 {[%clk 0:01:56]}  Qf7 {[%clk 0:00:39]} 32. cxd5 {[%clk 0:01:55]}  cxd5 {[%clk 0:00:40]} 33. Nd6 {[%clk 0:01:52]}  Qd7 {[%clk 0:00:37]} 34. Nxe8 {[%clk 0:01:51]}  Qxg4+ {[%clk 0:00:31]} 35. Kf1 {[%clk 0:01:48]}  Qg2+ {[%clk 0:00:31]} 36. Ke1 {[%clk 0:01:49]}  Qxh2 {[%clk 0:00:27]} 37. Qe6+ {[%clk 0:01:48]}  Kh8 {[%clk 0:00:26]} 38. Nxg7 {[%clk 0:01:47]}  Qg1+ {[%clk 0:00:24]} 39. Kd2 {[%clk 0:01:46]}  Qxf2+ {[%clk 0:00:25]} 40. Kc1 {[%clk 0:01:46]}  Qxe3+ {[%clk 0:00:24]} 41. Kb1 {[%clk 0:01:46]}  Kxg7 {[%clk 0:00:22]} 42. Qxd5 {[%clk 0:01:42]}  f2 {[%clk 0:00:16]} 43. Qe5+ {[%clk 0:01:41]}  Kg6 {[%clk 0:00:16]} 44. Qe6+ {[%clk 0:01:41]}  Kh5 {[%clk 0:00:09]} 45. Rh1+ {[%clk 0:01:39]} 1-0


[Site "https://www.chess.com"]